[Event "*** Biggest EVER Titled Tuesday"]
[Site "Chess.com"]
[Date "2018.04.17"]
[Round "1"]
[White "pedroholly22"]
[Black "SabinoBrunello"]
[Result "0-1"]
[WhiteElo "2219"]
[BlackElo "2574"]
[TimeControl "180+2"]
[EndTime "13:05:26 PDT"]
[Termination "SabinoBrunello won on time"]

1. e4 {[%clk 0:03:01.6]} 1... e5 {[%clk 0:02:59.7]} 2. Nf3 {[%clk 0:03:01]} 2...
Nc6 {[%clk 0:03:00.6]} 3. Bc4 {[%clk 0:03:00]} 3... Bc5 {[%clk 0:03:01]} 4. O-O
{[%clk 0:02:59.4]} 4... Nf6 {[%clk 0:03:01]} 5. Qe2 {[%clk 0:02:59.1]} 5... O-O
{[%clk 0:03:01]} 6. c3 {[%clk 0:02:58.8]} 6... d6 {[%clk 0:02:55.7]} 7. h3
{[%clk 0:02:56.4]} 7... Bb6 {[%clk 0:02:55.1]} 8. b4 {[%clk 0:02:53.4]} 8... a5
{[%clk 0:02:54.7]} 9. b5 {[%clk 0:02:52.5]} 9... Ne7 {[%clk 0:02:56.3]} 10. Rd1
{[%clk 0:02:50]} 10... Ng6 {[%clk 0:02:56.1]} 11. d4 {[%clk 0:02:49.6]} 11...
Qe7 {[%clk 0:02:54.5]} 12. Nbd2 {[%clk 0:02:32.9]} 12... h6 {[%clk 0:02:47.6]}
13. a4 {[%clk 0:02:28.7]} 13... Re8 {[%clk 0:02:39.1]} 14. dxe5 {[%clk 0:02:25]}
14... Nxe5 {[%clk 0:02:38.7]} 15. Nxe5 {[%clk 0:02:03.9]} 15... Qxe5 {[%clk
0:02:40.6]} 16. Ra3 {[%clk 0:02:03.2]} 16... Bxh3 {[%clk 0:02:26.7]} 17. gxh3
{[%clk 0:01:26]} 17... Qg3+ {[%clk 0:02:27.1]} 18. Kf1 {[%clk 0:01:22.3]} 18...
Qxh3+ {[%clk 0:02:26.7]} 19. Ke1 {[%clk 0:01:23.7]} 19... d5 {[%clk 0:02:16.8]}
20. Bd3 {[%clk 0:01:11.6]} 20... dxe4 {[%clk 0:02:06.8]} 0-1

[Event "*** Biggest EVER Titled Tuesday"]
[Site "Chess.com"]
[Date "2018.04.17"]
[Round "1"]
[White "daro94"]
[Black "Vamostodorecto"]
[Result "1-0"]
[WhiteElo "2707"]
[BlackElo "2367"]
[TimeControl "180+2"]
[EndTime "13:05:28 PDT"]
[Termination "daro94 won by resignation"]

1. e3 {[%clk 0:02:58.9]} 1... e5 {[%clk 0:02:59.3]} 2. c4 {[%clk 0:02:58.8]}
2... g6 {[%clk 0:02:57.8]} 3. Nc3 {[%clk 0:02:57.3]} 3... Bg7 {[%clk 0:02:58.8]}
4. g3 {[%clk 0:02:58.2]} 4... Ne7 {[%clk 0:02:57.4]} 5. Bg2 {[%clk 0:02:59.3]}
5... Nbc6 {[%clk 0:02:56.6]} 6. Nge2 {[%clk 0:02:59.7]} 6... d6 {[%clk
0:02:56.7]} 7. O-O {[%clk 0:02:59.5]} 7... O-O {[%clk 0:02:56.9]} 8. Rb1 {[%clk
0:02:58.5]} 8... a5 {[%clk 0:02:51.1]} 9. b3 {[%clk 0:02:55.9]} 9... Bf5 {[%clk
0:02:49.3]} 10. d3 {[%clk 0:02:53.9]} 10... Qd7 {[%clk 0:02:49.2]} 11. Bb2
{[%clk 0:02:44.5]} 11... Bh3 {[%clk 0:02:47.6]} 12. Nd5 {[%clk 0:02:38.8]} 12...
Bxg2 {[%clk 0:02:46.1]} 13. Kxg2 {[%clk 0:02:38.3]} 13... Nxd5 {[%clk
0:02:32.4]} 14. cxd5 {[%clk 0:02:40.2]} 14... Ne7 {[%clk 0:02:29.7]} 15. e4
{[%clk 0:02:38.9]} 15... a4 {[%clk 0:02:16.2]} 16. bxa4 {[%clk 0:02:26.6]} 16...
Rxa4 {[%clk 0:02:10.9]} 17. Nc3 {[%clk 0:02:27.4]} 17... Ra6 {[%clk 0:02:09.2]}
18. Qb3 {[%clk 0:02:20.2]} 18... c6 {[%clk 0:02:02.3]} 19. Bc1 {[%clk
0:02:09.5]} 19... Rb8 {[%clk 0:00:38.1]} 20. Bg5 {[%clk 0:01:58.9]} 20... c5
{[%clk 0:00:24]} 21. Qb5 {[%clk 0:01:49.6]} 21... f6 {[%clk 0:00:23.5]} 22. Qxd7
{[%clk 0:01:50]} 1-0

[Event "*** Biggest EVER Titled Tuesday"]
[Site "Chess.com"]
[Date "2018.04.17"]
[Round "1"]
[White "NikolaGry"]
[Black "WinnerOleg"]
[Result "0-1"]
[WhiteElo "2620"]
[BlackElo "2326"]
[TimeControl "180+2"]
[EndTime "13:05:40 PDT"]
[Termination "WinnerOleg won on time"]

1. Nf3 {[%clk 0:02:58.9]} 1... Nf6 {[%clk 0:02:30.3]} 2. g3 {[%clk 0:02:58.8]}
2... g6 {[%clk 0:02:30.1]} 3. Bg2 {[%clk 0:03:00.2]} 3... Bg7 {[%clk 0:02:31.5]}
4. O-O {[%clk 0:03:01]} 4... O-O {[%clk 0:02:31.7]} 5. c4 {[%clk 0:03:00.3]}
5... c5 {[%clk 0:02:27.7]} 6. Nc3 {[%clk 0:03:00.1]} 6... Nc6 {[%clk 0:02:28]}
7. b3 {[%clk 0:02:48.3]} 7... b6 {[%clk 0:02:28.5]} 8. Ne5 {[%clk 0:02:42.2]}
8... Bb7 {[%clk 0:02:25]} 9. Bb2 {[%clk 0:02:36.5]} 9... Qc7 {[%clk 0:02:07.6]}
10. f4 {[%clk 0:02:09.8]} 10... d6 {[%clk 0:01:43.6]} 11. Nxc6 {[%clk
0:01:59.4]} 11... Bxc6 {[%clk 0:01:45.5]} 12. e3 {[%clk 0:01:56.6]} 12... Bxg2
{[%clk 0:01:40.9]} 13. Kxg2 {[%clk 0:01:35.7]} 13... Qc6+ {[%clk 0:01:42.2]} 14.
Qf3 {[%clk 0:01:33.1]} 14... Qxf3+ {[%clk 0:01:43.3]} 15. Kxf3 {[%clk
0:01:33.8]} 15... e6 {[%clk 0:01:45.2]} 0-1

[Event "*** Biggest EVER Titled Tuesday"]
[Site "Chess.com"]
[Date "2018.04.17"]
[Round "1"]
[White "nekochabo"]
[Black "MattyDPerrine"]
[Result "0-1"]
[WhiteElo "2543"]
[BlackElo "2237"]
[TimeControl "180+2"]
[EndTime "13:05:42 PDT"]
[Termination "MattyDPerrine won on time"]

1. f4 {[%clk 0:02:56.5]} 1... g6 {[%clk 0:02:59]} 2. Nf3 {[%clk 0:02:57.3]} 2...
Bg7 {[%clk 0:03:00.5]} 3. g3 {[%clk 0:02:58.7]} 3... b6 {[%clk 0:03:01.2]} 4.
Bg2 {[%clk 0:03:00]} 4... Bb7 {[%clk 0:03:02.8]} 5. O-O {[%clk 0:03:01.5]} 5...
d6 {[%clk 0:03:03.5]} 6. d3 {[%clk 0:03:01.9]} 6... Nd7 {[%clk 0:03:01.5]} 7. e4
{[%clk 0:03:03]} 7... e5 {[%clk 0:03:02.9]} 8. f5 {[%clk 0:03:02.2]} 8... Ne7
{[%clk 0:02:57.6]} 9. Nh4 {[%clk 0:03:00.8]} 9... d5 {[%clk 0:02:47.2]} 10. Nc3
{[%clk 0:03:00.5]} 10... d4 {[%clk 0:02:37]} 11. Ne2 {[%clk 0:03:01.2]} 11... c5
{[%clk 0:02:37.8]} 12. a4 {[%clk 0:02:47.4]} 12... a6 {[%clk 0:02:38.6]} 13. c4
{[%clk 0:02:18.4]} 13... dxc3 {[%clk 0:02:12.1]} 14. Nxc3 {[%clk 0:02:15.6]}
14... Nc6 {[%clk 0:02:06.6]} 15. fxg6 {[%clk 0:02:08.9]} 15... hxg6 {[%clk
0:02:06.1]} 16. Qf3 {[%clk 0:02:04.7]} 16... Rf8 {[%clk 0:01:33.7]} 0-1

[Event "*** Biggest EVER Titled Tuesday"]
[Site "Chess.com"]
[Date "2018.04.17"]
[Round "1"]
[White "BilodeauA"]
[Black "Vugar_Manafov"]
[Result "1-0"]
[WhiteElo "2620"]
[BlackElo "2295"]
[TimeControl "180+2"]
[EndTime "13:05:50 PDT"]
[Termination "BilodeauA won by resignation"]

1. e4 {[%clk 0:03:01.3]} 1... Nf6 {[%clk 0:02:56.6]} 2. e5 {[%clk 0:03:01.8]}
2... Nd5 {[%clk 0:02:57.4]} 3. d4 {[%clk 0:03:03.5]} 3... d6 {[%clk 0:02:58]} 4.
Nf3 {[%clk 0:03:05]} 4... h6 {[%clk 0:02:57.8]} 5. Be2 {[%clk 0:03:00.9]} 5...
Bf5 {[%clk 0:02:52]} 6. O-O {[%clk 0:03:01.2]} 6... e6 {[%clk 0:02:50.4]} 7. c4
{[%clk 0:03:01.4]} 7... Nb6 {[%clk 0:02:50.1]} 8. Nc3 {[%clk 0:03:02.2]} 8...
Nc6 {[%clk 0:02:50.1]} 9. exd6 {[%clk 0:02:52.9]} 9... cxd6 {[%clk 0:02:49.9]}
10. d5 {[%clk 0:02:53.9]} 10... exd5 {[%clk 0:02:44.2]} 11. cxd5 {[%clk
0:02:53.3]} 11... Ne5 {[%clk 0:02:43.8]} 12. Nd4 {[%clk 0:02:50.3]} 12... Bh7
{[%clk 0:02:41.7]} 13. Bb5+ {[%clk 0:02:27.4]} 13... Ned7 {[%clk 0:02:39]} 14.
Ne6 {[%clk 0:02:23.3]} 14... fxe6 {[%clk 0:02:31]} 15. dxe6 {[%clk 0:02:23.9]}
15... Be7 {[%clk 0:02:29.6]} 16. exd7+ {[%clk 0:02:22.6]} 16... Nxd7 {[%clk
0:02:30]} 17. Re1 {[%clk 0:02:12.2]} 17... O-O {[%clk 0:02:19.8]} 18. Nd5 {[%clk
0:02:12]} 18... Bf6 {[%clk 0:02:17.4]} 19. Nxf6+ {[%clk 0:01:53.3]} 19... Nxf6
{[%clk 0:02:17.1]} 20. Be3 {[%clk 0:01:51.1]} 20... a6 {[%clk 0:02:10.3]} 21.
Bf1 {[%clk 0:01:49.6]} 21... Rc8 {[%clk 0:02:07.2]} 22. Rc1 {[%clk 0:01:45.7]}
22... Rxc1 {[%clk 0:02:02.6]} 23. Qxc1 {[%clk 0:01:47.6]} 23... Qa5 {[%clk
0:02:00.8]} 24. Bd4 {[%clk 0:01:41.8]} 24... Ne4 {[%clk 0:01:52.6]} 25. f3
{[%clk 0:01:33.7]} 25... Nc5 {[%clk 0:01:51.4]} 26. Bc4+ {[%clk 0:01:05.7]}
26... Kh8 {[%clk 0:01:49.9]} 27. Re7 {[%clk 0:01:05.1]} 1-0

[Event "*** Biggest EVER Titled Tuesday"]
[Site "Chess.com"]
[Date "2018.04.17"]
[Round "1"]
[White "Blitzstream"]
[Black "sandager"]
[Result "1-0"]
[WhiteElo "2446"]
[BlackElo "1950"]
[TimeControl "180+2"]
[EndTime "13:06:04 PDT"]
[Termination "Blitzstream won by resignation"]

1. d4 {[%clk 0:03:01.9]} 1... Nf6 {[%clk 0:02:58.2]} 2. Bg5 {[%clk 0:03:02]}
2... Ne4 {[%clk 0:02:57.8]} 3. Bh4 {[%clk 0:03:02.3]} 3... c5 {[%clk 0:02:54.2]}
4. f3 {[%clk 0:03:03]} 4... Qa5+ {[%clk 0:02:49.4]} 5. c3 {[%clk 0:02:50.6]}
5... Nf6 {[%clk 0:02:47.9]} 6. d5 {[%clk 0:02:49]} 6... d6 {[%clk 0:02:43.7]} 7.
e4 {[%clk 0:02:48.9]} 7... Nbd7 {[%clk 0:02:43]} 8. Nd2 {[%clk 0:02:47.9]} 8...
g6 {[%clk 0:02:29.8]} 9. Nc4 {[%clk 0:02:46.8]} 9... Qc7 {[%clk 0:02:28.9]} 10.
a4 {[%clk 0:02:47.5]} 10... Bg7 {[%clk 0:02:28.7]} 11. Bd3 {[%clk 0:02:47.6]}
11... O-O {[%clk 0:02:29.2]} 12. Ne2 {[%clk 0:02:48.7]} 12... Ne5 {[%clk
0:02:30.1]} 13. Nxe5 {[%clk 0:02:47.3]} 13... dxe5 {[%clk 0:02:30.8]} 14. O-O
{[%clk 0:02:47.8]} 14... Bd7 {[%clk 0:02:27.4]} 15. c4 {[%clk 0:02:46.5]} 15...
a6 {[%clk 0:02:20.8]} 16. Nc3 {[%clk 0:02:37.2]} 16... Rad8 {[%clk 0:02:12.4]}
17. Qb3 {[%clk 0:02:36.7]} 17... Bc8 {[%clk 0:02:11]} 18. Bf2 {[%clk 0:02:36.8]}
18... Ne8 {[%clk 0:02:05.3]} 19. a5 {[%clk 0:02:36.9]} 19... e6 {[%clk
0:01:33.3]} 20. Qa3 {[%clk 0:02:14.2]} 20... f5 {[%clk 0:01:19]} 21. Bxc5 {[%clk
0:02:10.7]} 21... Rf7 {[%clk 0:01:19]} 22. Bb6 {[%clk 0:02:11.3]} 22... Qd7
{[%clk 0:01:17.9]} 23. c5 {[%clk 0:02:03.5]} 23... Nc7 {[%clk 0:01:11.3]} 24. d6
{[%clk 0:02:04.6]} 24... Nb5 {[%clk 0:01:08.5]} 25. Nxb5 {[%clk 0:02:04.4]}
25... axb5 {[%clk 0:01:07.9]} 26. Bxd8 {[%clk 0:02:05.4]} 26... Qxd8 {[%clk
0:01:08.1]} 27. Bxb5 {[%clk 0:02:05.2]} 27... Bf8 {[%clk 0:01:05]} 28. Rad1
{[%clk 0:02:00.8]} 28... Bd7 {[%clk 0:01:05.7]} 29. Qa4 {[%clk 0:02:01.1]} 29...
Bxb5 {[%clk 0:01:00.6]} 30. Qxb5 {[%clk 0:02:03]} 30... Rd7 {[%clk 0:00:58.9]}
31. b4 {[%clk 0:02:02.4]} 31... Bh6 {[%clk 0:00:58.7]} 32. Rd3 {[%clk
0:02:01.7]} 32... Bf4 {[%clk 0:00:57.7]} 33. g3 {[%clk 0:02:02.2]} 33... Bh6
{[%clk 0:00:56.5]} 34. Qc4 {[%clk 0:02:02.7]} 34... Rf7 {[%clk 0:00:53.8]} 35.
Qxe6 {[%clk 0:02:02.7]} 35... Kg7 {[%clk 0:00:51.4]} 36. Qxe5+ {[%clk
0:02:01.6]} 36... Kg8 {[%clk 0:00:50.6]} 37. d7 {[%clk 0:02:02.8]} 37... Bg7
{[%clk 0:00:50.2]} 38. Qe8+ {[%clk 0:02:02.8]} 38... Rf8 {[%clk 0:00:49.9]} 39.
Qxd8 {[%clk 0:02:03.8]} 39... Rxd8 {[%clk 0:00:50.5]} 40. b5 {[%clk 0:02:05.4]}
40... Kf7 {[%clk 0:00:50.6]} 41. c6 {[%clk 0:02:06.6]} 1-0

[Event "*** Biggest EVER Titled Tuesday"]
[Site "Chess.com"]
[Date "2018.04.17"]
[Round "1"]
[White "Zaven_ChessMood"]
[Black "bugsbunny444"]
[Result "1-0"]
[WhiteElo "2836"]
[BlackElo "2422"]
[TimeControl "180+2"]
[EndTime "13:06:06 PDT"]
[Termination "Zaven_ChessMood won by resignation"]

1. e4 {[%clk 0:02:59.1]} 1... e6 {[%clk 0:03:00.5]} 2. d3 {[%clk 0:02:59.6]}
2... d5 {[%clk 0:03:01.2]} 3. Nd2 {[%clk 0:03:01]} 3... c5 {[%clk 0:03:02.2]} 4.
Ngf3 {[%clk 0:03:01.3]} 4... Nc6 {[%clk 0:03:03.3]} 5. g3 {[%clk 0:03:01.8]}
5... g6 {[%clk 0:03:04.7]} 6. h4 {[%clk 0:03:01.4]} 6... h6 {[%clk 0:03:05]} 7.
Bg2 {[%clk 0:02:59.8]} 7... Bg7 {[%clk 0:03:06.1]} 8. O-O {[%clk 0:02:49.3]}
8... Nge7 {[%clk 0:02:57.7]} 9. Re1 {[%clk 0:02:50.1]} 9... O-O {[%clk
0:02:58.1]} 10. e5 {[%clk 0:02:49.3]} 10... b6 {[%clk 0:02:36.2]} 11. Nf1 {[%clk
0:02:48.9]} 11... a5 {[%clk 0:02:35.6]} 12. N1h2 {[%clk 0:02:49]} 12... a4
{[%clk 0:02:36.3]} 13. Ng4 {[%clk 0:02:49.4]} 13... Nf5 {[%clk 0:02:37.5]} 14.
Bf4 {[%clk 0:02:46.6]} 14... Kh7 {[%clk 0:02:35.2]} 15. Qd2 {[%clk 0:02:43.2]}
15... a3 {[%clk 0:02:34.7]} 16. b3 {[%clk 0:02:43.5]} 16... Ra7 {[%clk
0:02:27.3]} 17. Rad1 {[%clk 0:02:41.5]} 17... Bb7 {[%clk 0:02:16.3]} 18. h5
{[%clk 0:02:30.1]} 18... d4 {[%clk 0:01:39.4]} 19. hxg6+ {[%clk 0:02:25.5]}
19... fxg6 {[%clk 0:01:40.7]} 20. Nxh6 {[%clk 0:02:16.5]} 20... Bxh6 {[%clk
0:00:30]} 21. Bxh6 {[%clk 0:02:16.2]} 21... Nxh6 {[%clk 0:00:13.4]} 22. Ng5+
{[%clk 0:02:15.7]} 22... Qxg5 {[%clk 0:00:14.5]} 23. Qxg5 {[%clk 0:02:16.2]}
23... Nb4 {[%clk 0:00:15.5]} 24. Bxb7 {[%clk 0:02:15.5]} 24... Rxb7 {[%clk
0:00:16.9]} 25. Kg2 {[%clk 0:02:16.4]} 25... Rf5 {[%clk 0:00:16.7]} 26. Qd8
{[%clk 0:02:15.8]} 26... Nxa2 {[%clk 0:00:12.1]} 27. Rh1 {[%clk 0:02:16.4]}
27... Rh5 {[%clk 0:00:13.3]} 28. Rxh5 {[%clk 0:02:15.7]} 28... gxh5 {[%clk
0:00:14.3]} 29. Ra1 {[%clk 0:02:16.7]} 29... Nb4 {[%clk 0:00:14.8]} 30. Rxa3
{[%clk 0:02:17.8]} 30... Nxc2 {[%clk 0:00:16.1]} 31. Ra8 {[%clk 0:02:18.5]}
31... Ne1+ {[%clk 0:00:17.6]} 32. Kf1 {[%clk 0:02:19.1]} 32... Nxd3 {[%clk
0:00:19]} 33. Qh8+ {[%clk 0:02:10]} 33... Kg6 {[%clk 0:00:19]} 34. Qf6+ {[%clk
0:02:11]} 1-0

[Event "*** Biggest EVER Titled Tuesday"]
[Site "Chess.com"]
[Date "2018.04.17"]
[Round "1"]
[White "oskariot"]
[Black "nihalsarin"]
[Result "0-1"]
[WhiteElo "2389"]
[BlackElo "2752"]
[TimeControl "180+2"]
[EndTime "13:06:16 PDT"]
[Termination "nihalsarin won by resignation"]

1. e4 {[%clk 0:03:01.5]} 1... e5 {[%clk 0:03:00.8]} 2. Nf3 {[%clk 0:02:45.3]}
2... Nc6 {[%clk 0:03:01.2]} 3. Nc3 {[%clk 0:02:46.5]} 3... Nf6 {[%clk
0:03:01.7]} 4. a3 {[%clk 0:02:47.4]} 4... d6 {[%clk 0:02:59.2]} 5. Bc4 {[%clk
0:02:46.8]} 5... Be7 {[%clk 0:03:00]} 6. d3 {[%clk 0:02:47.6]} 6... O-O {[%clk
0:03:01.6]} 7. h3 {[%clk 0:02:47.3]} 7... a6 {[%clk 0:03:00.5]} 8. Be3 {[%clk
0:02:32.9]} 8... b5 {[%clk 0:03:00.5]} 9. Ba2 {[%clk 0:02:30.3]} 9... Bb7 {[%clk
0:03:01.9]} 10. g4 {[%clk 0:02:07.9]} 10... b4 {[%clk 0:02:50.9]} 11. Nd5 {[%clk
0:01:50.2]} 11... bxa3 {[%clk 0:02:45.3]} 12. bxa3 {[%clk 0:01:46.5]} 12... Nxd5
{[%clk 0:02:37.6]} 13. Bxd5 {[%clk 0:01:42.3]} 13... Na5 {[%clk 0:02:38.6]} 14.
Bxb7 {[%clk 0:01:37.6]} 14... Nxb7 {[%clk 0:02:40.5]} 15. c4 {[%clk 0:01:36.6]}
15... Qd7 {[%clk 0:02:38]} 16. O-O {[%clk 0:01:28]} 16... Nd8 {[%clk 0:02:27.4]}
17. d4 {[%clk 0:01:22.9]} 17... exd4 {[%clk 0:02:29.3]} 18. Nxd4 {[%clk
0:01:22.1]} 18... Bf6 {[%clk 0:02:29.1]} 19. Rb1 {[%clk 0:01:20.8]} 19... Re8
{[%clk 0:02:28.9]} 20. Nf5 {[%clk 0:01:00.5]} 20... Rxe4 {[%clk 0:02:01.4]} 21.
Qd5 {[%clk 0:01:01.1]} 21... Qc6 {[%clk 0:02:01.5]} 22. Qxc6 {[%clk 0:00:50.5]}
22... Nxc6 {[%clk 0:02:01.2]} 23. Rb7 {[%clk 0:00:47.8]} 23... Rc8 {[%clk
0:01:54.3]} 24. g5 {[%clk 0:00:42.8]} 24... Bd8 {[%clk 0:01:44.3]} 25. Rc1
{[%clk 0:00:35.4]} 25... Re5 {[%clk 0:01:42.3]} 26. Nh4 {[%clk 0:00:18.2]} 26...
Bxg5 {[%clk 0:01:40.2]} 0-1

[Event "*** Biggest EVER Titled Tuesday"]
[Site "Chess.com"]
[Date "2018.04.17"]
[Round "1"]
[White "Journey_to_GrandMaster_YT"]
[Black "SantoBlue"]
[Result "1-0"]
[WhiteElo "2371"]
[BlackElo "2661"]
[TimeControl "180+2"]
[EndTime "13:06:34 PDT"]
[Termination "Journey_to_GrandMaster_YT won by resignation"]

1. d4 {[%clk 0:03:01.9]} 1... Nf6 {[%clk 0:02:58.4]} 2. Nf3 {[%clk 0:03:02.9]}
2... e6 {[%clk 0:02:56.5]} 3. c4 {[%clk 0:03:03.5]} 3... b6 {[%clk 0:02:56.3]}
4. Nc3 {[%clk 0:03:03.8]} 4... Bb7 {[%clk 0:02:53.5]} 5. e3 {[%clk 0:03:03.8]}
5... Bb4 {[%clk 0:02:51]} 6. Bd3 {[%clk 0:03:03.7]} 6... c5 {[%clk 0:02:45.9]}
7. O-O {[%clk 0:03:02.8]} 7... Bxc3 {[%clk 0:02:44.5]} 8. bxc3 {[%clk
0:03:03.3]} 8... Nc6 {[%clk 0:02:44.9]} 9. Ba3 {[%clk 0:02:53.9]} 9... d6 {[%clk
0:02:45.6]} 10. e4 {[%clk 0:02:54.1]} 10... e5 {[%clk 0:02:46.6]} 11. d5 {[%clk
0:02:42.2]} 11... Na5 {[%clk 0:02:45.3]} 12. Nd2 {[%clk 0:02:39.3]} 12... Qd7
{[%clk 0:02:41.8]} 13. f4 {[%clk 0:02:35.6]} 13... Qe7 {[%clk 0:02:40]} 14. Qf3
{[%clk 0:02:27.6]} 14... Nd7 {[%clk 0:02:34.4]} 15. f5 {[%clk 0:02:16.2]} 15...
Ba6 {[%clk 0:02:34.1]} 16. Qe2 {[%clk 0:02:12]} 16... Kd8 {[%clk 0:02:31.5]} 17.
Nb3 {[%clk 0:02:12.1]} 17... Kc7 {[%clk 0:02:27]} 18. Nxa5 {[%clk 0:02:12.2]}
18... bxa5 {[%clk 0:02:28.9]} 19. Rab1 {[%clk 0:02:11.8]} 19... f6 {[%clk
0:02:27]} 20. Bc1 {[%clk 0:02:09.5]} 20... Nb6 {[%clk 0:02:27.1]} 21. Be3 {[%clk
0:02:02.4]} 21... Qd7 {[%clk 0:02:27.4]} 22. Rb2 {[%clk 0:01:51.1]} 22... Rab8
{[%clk 0:02:11]} 23. Rfb1 {[%clk 0:01:51.8]} 23... Qa4 {[%clk 0:01:27.2]} 24.
Qh5 {[%clk 0:01:51.1]} 24... Nxc4 {[%clk 0:00:48.7]} 25. Qf7+ {[%clk 0:01:36.1]}
25... Qd7 {[%clk 0:00:39.9]} 26. Qxd7+ {[%clk 0:01:35.3]} 26... Kxd7 {[%clk
0:00:41.8]} 27. Rxb8 {[%clk 0:01:36.2]} 27... Rxb8 {[%clk 0:00:42.3]} 28. Rxb8
{[%clk 0:01:36.7]} 28... Kc7 {[%clk 0:00:43.6]} 29. Bxc4 {[%clk 0:01:32.1]}
29... Bxc4 {[%clk 0:00:43.6]} 30. Rg8 {[%clk 0:01:32.9]} 30... Bxa2 {[%clk
0:00:44]} 31. Rxg7+ {[%clk 0:01:34]} 31... Kb6 {[%clk 0:00:45.5]} 32. Rxh7
{[%clk 0:01:33.9]} 32... Bb1 {[%clk 0:00:43.5]} 33. Rh6 {[%clk 0:01:29.3]} 33...
a4 {[%clk 0:00:43.7]} 34. Bc1 {[%clk 0:01:29]} 34... Bxe4 {[%clk 0:00:43.8]} 35.
Rxf6 {[%clk 0:01:30.1]} 35... Kc7 {[%clk 0:00:44.3]} 36. h4 {[%clk 0:01:30.9]}
36... Bxd5 {[%clk 0:00:45.1]} 37. h5 {[%clk 0:01:32.1]} 1-0

[Event "*** Biggest EVER Titled Tuesday"]
[Site "Chess.com"]
[Date "2018.04.17"]
[Round "1"]
[White "walkingcreep"]
[Black "aa175"]
[Result "1/2-1/2"]
[WhiteElo "2438"]
[BlackElo "1871"]
[TimeControl "180+2"]
[EndTime "13:06:36 PDT"]
[Termination "Game drawn by repetition"]

1. e4 {[%clk 0:02:59.1]} 1... e5 {[%clk 0:02:57.6]} 2. Nf3 {[%clk 0:03:00.3]}
2... Nc6 {[%clk 0:02:56.9]} 3. Bc4 {[%clk 0:03:00.5]} 3... Nf6 {[%clk
0:02:57.6]} 4. d3 {[%clk 0:03:01.2]} 4... Bc5 {[%clk 0:02:58.1]} 5. O-O {[%clk
0:03:01.5]} 5... d6 {[%clk 0:02:58.8]} 6. Bg5 {[%clk 0:02:58.9]} 6... Bg4 {[%clk
0:02:58.8]} 7. Nbd2 {[%clk 0:02:57.1]} 7... h6 {[%clk 0:02:56.3]} 8. Bh4 {[%clk
0:02:57.5]} 8... Nd4 {[%clk 0:02:54.6]} 9. c3 {[%clk 0:02:56.4]} 9... Nxf3+
{[%clk 0:02:55.4]} 10. Nxf3 {[%clk 0:02:57.4]} 10... g5 {[%clk 0:02:43.7]} 11.
Bg3 {[%clk 0:02:57.7]} 11... h5 {[%clk 0:02:41.5]} 12. h3 {[%clk 0:02:53.6]}
12... h4 {[%clk 0:02:36.7]} 13. Bh2 {[%clk 0:02:53.3]} 13... Bh5 {[%clk
0:02:33]} 14. Re1 {[%clk 0:02:45]} 14... g4 {[%clk 0:02:29.8]} 15. hxg4 {[%clk
0:02:45.5]} 15... Nxg4 {[%clk 0:02:30.2]} 16. d4 {[%clk 0:02:45.6]} 16... Nxh2
{[%clk 0:02:24.9]} 17. Kxh2 {[%clk 0:02:45.6]} 17... exd4 {[%clk 0:02:23.9]} 18.
cxd4 {[%clk 0:02:44.8]} 18... Bb6 {[%clk 0:02:14.6]} 19. e5 {[%clk 0:02:37.6]}
19... d5 {[%clk 0:02:05.5]} 20. Be2 {[%clk 0:02:38.3]} 20... Bg4 {[%clk
0:02:00.2]} 21. Ng1 {[%clk 0:02:37.4]} 21... Bxe2 {[%clk 0:01:53.7]} 22. Qxe2
{[%clk 0:02:34.3]} 22... Qd7 {[%clk 0:01:47.9]} 23. Rad1 {[%clk 0:02:28.4]}
23... O-O-O {[%clk 0:01:42.9]} 24. Nh3 {[%clk 0:02:29.1]} 24... Rdg8 {[%clk
0:01:35.5]} 25. e6 {[%clk 0:01:34.5]} 25... Qd6+ {[%clk 0:01:31.8]} 26. Qe5
{[%clk 0:01:35.2]} 26... Qxe5+ {[%clk 0:01:19.8]} 27. Rxe5 {[%clk 0:01:35.1]}
27... fxe6 {[%clk 0:01:21.7]} 28. Rxe6 {[%clk 0:01:36.3]} 28... Rg4 {[%clk
0:01:21.2]} 29. f4 {[%clk 0:01:28.2]} 29... Rhg8 {[%clk 0:01:16.9]} 30. Re2
{[%clk 0:01:28.9]} 30... c6 {[%clk 0:01:10.1]} 31. Kh1 {[%clk 0:01:23.8]} 31...
Bc7 {[%clk 0:01:06.5]} 32. Rf1 {[%clk 0:01:23.9]} 32... Bb6 {[%clk 0:01:00.7]}
33. Rd1 {[%clk 0:01:22.5]} 33... Bc7 {[%clk 0:01:01.2]} 34. Rf1 {[%clk
0:01:22.6]} 34... Bb6 {[%clk 0:01:01.5]} 35. Rd1 {[%clk 0:01:14.6]} 1/2-1/2